fUSD/lending_fUSD_20250120
["ID","MTS","AMOUNT","RATE_DAILY","PERIOD"]
[349765826,1737417058652,-500.0,0.0002072,2]
[349765827,1737417058661,-1000.0,0.0002072,2]
[349765828,1737417058671,-960.52,0.0002072,2]
[349765829,1737417058679,-500.0,0.0002072,2]
[349765830,1737417058688,-1413.51,0.0002072,2]
[349765831,1737417058697,-1222.69,0.0002072,2]
[349765832,1737417058707,-36866.12208704,0.00020767,2]
[349765833,1737417058716,-163.85111953,0.00020782,2]
[349765834,1737417058725,-1008.11189962,0.00020795,2]
[349765835,1737417058734,-1000.0,0.00020799,2]
[349765836,1737417058743,-250.0,0.000208,2]
[349765837,1737417058752,-250.0,0.000208,2]
[349765838,1737417058760,-250.0,0.000208,2]
[349765839,1737417058769,-250.0,0.000208,2]
[349765840,1737417058778,-250.0,0.000208,2]
[349765841,1737417058792,-250.0,0.000208,2]
[349765842,1737417058801,-250.0,0.000208,2]
[349765843,1737417058810,-250.0,0.000208,2]
[349765844,1737417058819,-250.0,0.000208,2]
[349765845,1737417058829,-250.0,0.000208,2]
[349765846,1737417058838,-250.0,0.000208,2]
[349765847,1737417058848,-250.0,0.000208,2]
[349765848,1737417058857,-250.0,0.000208,2]
[349765849,1737417058867,-250.0,0.000208,2]
[349765850,1737417058875,-250.0,0.000208,2]
[349765851,1737417058885,-250.0,0.000208,2]
[349765852,1737417058894,-250.0,0.000208,2]
[349765853,1737417058904,-250.0,0.000208,2]
[349765854,1737417058913,-250.0,0.000208,2]
[349765855,1737417058922,-250.0,0.000208,2]
[349765856,1737417058932,-250.0,0.000208,2]
[349765857,1737417058941,-250.0,0.000208,2]
[349765858,1737417058951,-250.0,0.000208,2]
[349765859,1737417058960,-250.0,0.000208,2]
[349765860,1737417058970,-250.0,0.000208,2]
[349765861,1737417058979,-250.0,0.000208,2]
[349765862,1737417058989,-250.0,0.000208,2]
[349765863,1737417058999,-250.0,0.000208,2]
[349765864,1737417059013,-250.0,0.000208,2]
[349765865,1737417059023,-250.0,0.000208,2]
[349765866,1737417059035,-471.2,0.000208,2]
[349765867,1737417059044,-171.77,0.00020812,2]
[349765868,1737417059054,-500.0,0.00020821,2]
[349765869,1737417059064,-500.0,0.00020821,2]
[349765870,1737417059073,-500.0,0.00020821,2]
[349765871,1737417059083,-519.16740805,0.00020821,2]
[349765872,1737417059092,-500.0,0.00020821,2]
[349765873,1737417059102,-661.37,0.00020821,2]
[349765874,1737417059112,-500.0,0.00020821,2]
[349765875,1737417059121,-500.0,0.00020821,2]
[349765876,1737417059132,-500.0,0.00020821,2]
[349765877,1737417059142,-500.0,0.00020821,2]
[349765878,1737417059151,-500.0,0.00020821,2]
[349765879,1737417059161,-500.0,0.00020821,2]
[349765880,1737417059175,-500.0,0.00020821,2]
[349765881,1737417059185,-500.0,0.00020821,2]
[349765882,1737417059194,-500.0,0.00020821,2]
[349765883,1737417059203,-500.0,0.00020821,2]
[349765884,1737417059214,-500.0,0.00020821,2]
[349765885,1737417059224,-500.0,0.00020821,2]
[349765886,1737417059233,-500.0,0.00020821,2]
[349765887,1737417059243,-500.0,0.00020821,2]
[349765888,1737417059252,-500.0,0.00020821,2]
[349765889,1737417059261,-500.0,0.00020821,2]
[349765890,1737417059270,-1080.67,0.00020821,2]
[349765891,1737417059281,-436.3093385,0.00020821,2]
[349765892,1737417059292,-500.0,0.00020821,2]
[349765893,1737417059302,-500.0,0.00020821,2]
[349765894,1737417059311,-500.0,0.00020821,2]
[349765895,1737417059320,-500.0,0.00020821,2]
[349765896,1737417059330,-500.0,0.00020821,2]
[349765897,1737417059339,-500.0,0.00020821,2]
[349765898,1737417059477,-500.0,0.00020821,2]
[349765899,1737417059492,-500.0,0.00020821,2]
[349765900,1737417059502,-500.0,0.00020821,2]
[349765901,1737417059511,-500.0,0.00020821,2]
[349765902,1737417059520,-500.0,0.00020821,2]
[349765903,1737417059529,-500.0,0.00020821,2]
[349765904,1737417059541,-500.0,0.00020821,2]
[349765905,1737417059550,-500.0,0.00020821,2]
[349765906,1737417059559,-500.0,0.00020821,2]
[349765907,1737417059568,-500.0,0.00020821,2]
[349765908,1737417059577,-400.88495016,0.00020821,2]
[349765909,1737417059586,-500.0,0.00020821,2]
[349765910,1737417059595,-500.0,0.00020821,2]
[349765911,1737417059603,-500.0,0.00020821,2]
[349765912,1737417059612,-500.0,0.00020821,2]
[349765913,1737417059622,-500.0,0.00020821,2]
[349765914,1737417059631,-500.0,0.00020821,2]
[349765915,1737417059640,-500.0,0.00020821,2]
[349765916,1737417059650,-500.0,0.00020821,2]
[349765917,1737417059659,-500.0,0.00020821,2]
[349765918,1737417059668,-500.0,0.00020821,2]
[349765919,1737417059677,-316.41871707,0.00020821,2]
[349765920,1737417059687,-500.0,0.00020821,2]
[349765921,1737417059697,-500.0,0.00020821,2]
[349765922,1737417059706,-500.0,0.00020821,2]
[349765923,1737417059715,-500.0,0.00020821,2]
[349765924,1737417059724,-500.0,0.00020821,2]
[349765925,1737417059734,-500.0,0.00020821,2]
[349765926,1737417059743,-500.0,0.00020821,2]
[349765927,1737417059751,-500.0,0.00020821,2]
[349765928,1737417059760,-500.0,0.00020821,2]
[349765929,1737417059769,-500.0,0.00020821,2]
[349765930,1737417059778,-500.0,0.00020821,2]
[349765931,1737417059791,-500.0,0.00020821,2]
[349765932,1737417059800,-500.0,0.00020821,2]
[349765933,1737417059809,-500.0,0.00020821,2]
[349765934,1737417059818,-500.0,0.00020821,2]
[349765935,1737417059827,-500.0,0.00020821,2]
[349765936,1737417059835,-525.82738832,0.00020821,2]
[349765937,1737417059844,-500.0,0.00020821,2]
[349765938,1737417059853,-500.0,0.00020821,2]
[349765939,1737417059862,-500.0,0.00020821,2]
[349765940,1737417059871,-500.0,0.00020821,2]
[349765941,1737417059880,-611.04,0.00020821,2]
[349765942,1737417059890,-500.0,0.00020821,2]
[349765943,1737417059899,-500.0,0.00020821,2]
[349765944,1737417059908,-500.0,0.00020821,2]
[349765945,1737417059918,-500.0,0.00020821,2]
[349765946,1737417059927,-500.0,0.00020821,2]
[349765947,1737417059937,-500.0,0.00020821,2]
[349765948,1737417059946,-500.0,0.00020821,2]
[349765949,1737417059955,-500.0,0.00020821,2]
[349765950,1737417059964,-542.98,0.00020821,2]
[349765951,1737417059973,-500.0,0.00020821,2]
[349765952,1737417059983,-500.0,0.00020821,2]
[349765953,1737417059993,-500.0,0.00020821,2]
[349765954,1737417060003,-500.0,0.00020821,2]
[349765955,1737417060013,-500.0,0.00020821,2]
[349765956,1737417060024,-500.0,0.00020821,2]
[349765957,1737417060034,-500.0,0.00020821,2]
[349765958,1737417060044,-500.0,0.00020821,2]
[349765959,1737417060053,-500.0,0.00020821,2]
[349765960,1737417060063,-500.0,0.00020821,2]
[349765961,1737417060072,-500.0,0.00020821,2]
[349765962,1737417060082,-540.2,0.00020821,2]
[349765963,1737417060091,-500.0,0.00020821,2]
[349765964,1737417060101,-500.0,0.00020821,2]
[349765965,1737417060111,-548.85,0.00020821,2]
[349765966,1737417060120,-500.0,0.00020821,2]
[349765967,1737417060130,-500.0,0.00020821,2]
[349765968,1737417060139,-500.0,0.00020821,2]
[349765969,1737417060149,-500.0,0.00020821,2]
[349765970,1737417060158,-500.0,0.00020821,2]
[349765971,1737417060168,-500.0,0.00020821,2]
[349765972,1737417060178,-500.0,0.00020821,2]
[349765973,1737417060189,-500.0,0.00020821,2]
[349765974,1737417060199,-500.0,0.00020821,2]
[349765975,1737417060208,-500.0,0.00020821,2]
[349765976,1737417060218,-500.0,0.00020821,2]
[349765977,1737417060228,-500.0,0.00020821,2]
[349765978,1737417060237,-500.0,0.00020821,2]
[349765979,1737417060247,-500.0,0.00020821,2]
[349765980,1737417060258,-500.0,0.00020821,2]
[349765981,1737417060268,-500.0,0.00020821,2]
[349765982,1737417060278,-500.0,0.00020821,2]
[349765983,1737417060290,-500.0,0.00020821,2]
[349765984,1737417060300,-500.0,0.00020821,2]
[349765985,1737417060310,-500.0,0.00020821,2]
[349765986,1737417060319,-500.0,0.00020821,2]
[349765987,1737417060328,-669.36,0.00020821,2]
[349765988,1737417060337,-500.0,0.00020821,2]
[349765989,1737417060348,-500.0,0.00020821,2]
[349765990,1737417060357,-506.32862081,0.00020821,2]
[349765991,1737417060366,-985.22,0.00020821,2]
[349765992,1737417060375,-500.0,0.00020821,2]
[349765993,1737417060384,-500.0,0.00020821,2]
[349765994,1737417060394,-500.0,0.00020821,2]
[349765995,1737417060403,-777.3,0.00020821,2]
[349765996,1737417060413,-544.49,0.00020821,2]
[349765997,1737417060422,-500.0,0.00020821,2]
[349765998,1737417060431,-1099.02,0.00020821,2]
[349765999,1737417060440,-1845.56,0.00020821,2]
[349766000,1737417060450,-500.0,0.00020821,2]
[349766001,1737417060460,-500.0,0.00020821,2]
[349766002,1737417060469,-500.0,0.00020821,2]
[349766003,1737417060478,-878.23,0.00020821,2]
[349766004,1737417060488,-500.0,0.00020821,2]
[349766005,1737417060497,-500.0,0.00020821,2]
[349766006,1737417060507,-500.0,0.00020821,2]
[349766007,1737417060516,-500.0,0.00020821,2]
[349766008,1737417060525,-2476.57,0.00020821,2]
[349766009,1737417060536,-500.0,0.00020821,2]
[349766010,1737417060545,-821.42,0.00020821,2]
[349766011,1737417060554,-1198.86,0.00020821,2]
[349766012,1737417060563,-500.0,0.00020821,2]
[349766013,1737417060572,-500.0,0.00020821,2]
[349766014,1737417060582,-500.0,0.00020821,2]
[349766015,1737417060591,-2121.34,0.00020821,2]
[349766016,1737417060600,-500.0,0.00020821,2]
[349766017,1737417060610,-500.0,0.00020821,2]
[349766018,1737417060620,-974.3,0.00020821,2]
[349766019,1737417060629,-792.0,0.00020821,2]
[349766020,1737417060639,-500.0,0.00020821,2]
[349766021,1737417060648,-500.0,0.00020821,2]
[349766022,1737417060658,-500.0,0.00020821,2]
[349766023,1737417060667,-1319.21,0.00020821,2]
[349766024,1737417060676,-500.0,0.00020821,2]
[349766025,1737417060685,-2587.78,0.00020821,2]
[349766026,1737417060694,-500.0,0.00020821,2]
[349766027,1737417060703,-500.0,0.00020821,2]
[349766028,1737417060712,-995.37,0.00020821,2]
[349766029,1737417060722,-500.0,0.00020821,2]
[349766030,1737417060731,-500.0,0.00020821,2]
[349766031,1737417060740,-500.0,0.00020821,2]
[349766032,1737417060749,-500.0,0.00020821,2]
[349766033,1737417060758,-577.54,0.00020821,2]
[349766034,1737417060767,-500.0,0.00020821,2]
[349766035,1737417060776,-500.0,0.00020821,2]
[349766036,1737417060788,-500.0,0.00020821,2]
[349766037,1737417060798,-1101.58,0.00020821,2]
[349766038,1737417060808,-500.0,0.00020821,2]
[349766039,1737417060817,-500.0,0.00020821,2]
[349766040,1737417060826,-500.0,0.00020821,2]
[349766041,1737417060836,-500.0,0.00020821,2]
[349766042,1737417060846,-500.0,0.00020821,2]
[349766043,1737417060855,-1460.32,0.00020821,2]
[349766044,1737417060866,-537.94,0.00020821,2]
[349766045,1737417060875,-500.0,0.00020821,2]
[349766046,1737417060885,-500.0,0.00020821,2]
[349766047,1737417060895,-1069.22,0.00020821,2]
[349766048,1737417060905,-500.0,0.00020821,2]
[349766049,1737417060915,-500.0,0.00020821,2]
[349766050,1737417060924,-500.0,0.00020821,2]
[349766051,1737417060933,-500.0,0.00020822,2]
[349766052,1737417060943,-500.0,0.00020894,2]
[349766053,1737417060953,-1537.98,0.00020894,2]
[349766054,1737417060963,-837.36,0.00020894,2]
[349766055,1737417060974,-814.47,0.00020894,2]
[349766056,1737417060983,-1868.63,0.00020894,2]
[349766057,1737417060992,-540.34,0.00020894,2]
[349766058,1737417061001,-1038.77,0.00020894,2]
[349766059,1737417061011,-713.13,0.00020894,2]
[349766060,1737417061020,-1164.98,0.00020894,2]
[349766061,1737417061029,-1837.24,0.00020894,2]
[349766062,1737417061045,-500.0,0.00020894,2]
[349766063,1737417061054,-500.0,0.00020894,2]
[349766064,1737417061064,-1286.57,0.00020894,2]
[349766065,1737417061074,-682.9,0.00020894,2]
[349766066,1737417061083,-683.03,0.00020894,2]
[349766067,1737417061093,-500.0,0.00020894,2]
[349766068,1737417061102,-444.19695238,0.00020894,2]
[349766069,1737417061112,-1860.39,0.00020894,2]
[349766070,1737417061121,-892.7,0.00020894,2]
[349766071,1737417061131,-500.0,0.00020894,2]
[349766072,1737417061140,-500.0,0.00020894,2]
[349766073,1737417061151,-500.0,0.00020894,2]
[349766074,1737417061162,-598.0,0.00020894,2]
[349766075,1737417061176,-626.45,0.00020894,2]
[349766076,1737417061186,-2220.13,0.00020894,2]
[349766077,1737417061195,-1849.02,0.00020894,2]
[349766078,1737417061205,-500.0,0.00020894,2]
[349766079,1737417061215,-500.0,0.00020895,2]
[349766080,1737417061223,-238.29,0.00020895,2]
[349766081,1737417061233,-500.0,0.00020895,2]
[349766082,1737417061242,-514.18,0.00020895,2]
[349766083,1737417061252,-233.461181,0.00020895,2]
[349766084,1737417061261,-500.0,0.00020895,2]
[349766085,1737417061271,-500.0,0.00020895,2]
[349766086,1737417061280,-957.55,0.00020895,2]
[349766087,1737417061293,-386.683086,0.00020895,2]
[349766088,1737417061302,-1758.19,0.00020895,2]
[349766089,1737417061311,-1187.43,0.00020895,2]
[349766090,1737417061320,-500.0,0.00020895,2]
[349766091,1737417061330,-618.43,0.00020895,2]
[349766092,1737417061339,-597.06,0.00020895,2]
[349766093,1737417061348,-764.65,0.00020895,2]
[349766094,1737417061357,-746.84,0.00020895,2]
[349766095,1737417061367,-1744.63,0.00020895,2]
[349766096,1737417061376,-1275.72,0.00020895,2]
[349766097,1737417061386,-500.0,0.00020895,2]
[349766098,1737417061396,-500.0,0.00020895,2]
[349766099,1737417061404,-1525.72,0.00020895,2]
[349766100,1737417061414,-500.0,0.00020895,2]
[349766101,1737417061423,-1284.73,0.00020895,2]
[349766102,1737417061432,-2470.88,0.00020895,2]
[349766103,1737417061442,-1738.49,0.00020895,2]
[349766104,1737417061451,-1865.01,0.00020895,2]
[349766105,1737417061460,-500.0,0.00020895,2]
[349766106,1737417061469,-500.0,0.00020895,2]
[349766107,1737417061478,-809.74,0.00020895,2]
[349766108,1737417061487,-884.03,0.00020895,2]
[349766109,1737417061496,-1950.47,0.00020895,2]
[349766110,1737417061505,-500.0,0.00020895,2]
[349766111,1737417061513,-1114.14,0.00020895,2]
[349766112,1737417061523,-500.0,0.00020895,2]
[349766113,1737417061532,-555.22,0.00020895,2]
[349766114,1737417061543,-161.341,0.000209,2]
[349766115,1737417061552,-205.46453801,0.000209,2]
[349766116,1737417061561,-205.46453777,0.00020938,2]
[349766117,1737417061570,-205.46453777,0.00020977,2]
[349766118,1737417061580,-500.0,0.00020994,2]
[349766119,1737417061589,-500.0,0.00020994,2]
[349766120,1737417061598,-500.0,0.00020994,2]
[349766121,1737417061608,-1219.86,0.00020994,2]
[349766122,1737417061617,-621.68,0.00020994,2]
[349766123,1737417061626,-500.0,0.00020994,2]
[349766124,1737417061635,-969.3,0.00020994,2]
[349766125,1737417061645,-681.26,0.00020994,2]
[349766126,1737417061654,-1642.59,0.00020994,2]
[349766127,1737417061663,-500.0,0.00020994,2]
[349766128,1737417061672,-3555.51,0.00020994,2]
[349766129,1737417061682,-500.0,0.00020994,2]
[349766130,1737417061691,-527.22,0.00020994,2]
[349766131,1737417061700,-507.75,0.00020994,2]
[349766132,1737417061709,-1620.67,0.00020994,2]
[349766133,1737417061719,-164.1,0.00020994,2]
[349766134,1737417061728,-506.49,0.00020994,2]
[349766135,1737417061738,-761.08,0.00020994,2]
[349766136,1737417061747,-987.65,0.00020994,2]
[349766137,1737417061756,-500.0,0.00020994,2]
[349766138,1737417061765,-1000.0,0.00020994,2]
[349766139,1737417061775,-960.52,0.00020994,2]
[349766140,1737417061785,-500.0,0.00020994,2]
[349766141,1737417061798,-1413.51,0.00020994,2]
[349766142,1737417061808,-1222.69,0.00020994,2]
[349766143,1737417061818,-625.03940628,0.00021007,2]
[349766144,1737417061828,-205.46453777,0.00021015,2]
[349766145,1737417061839,-1081.19,0.00021034,2]
[349766146,1737417061848,-36866.12208704,0.0002105,2]
[349766147,1737417061858,-205.46453777,0.00021054,2]
[349766148,1737417061867,-205.46453777,0.00021092,2]
[349766149,1737417061876,-500.0,0.00021095,2]
[349766150,1737417061885,-500.0,0.00021095,2]
[349766151,1737417061895,-500.0,0.00021095,2]
[349766152,1737417061904,-661.37,0.00021095,2]
[349766153,1737417061913,-500.0,0.00021095,2]
[349766154,1737417061922,-500.0,0.00021095,2]
[349766155,1737417061931,-500.0,0.00021095,2]
[349766156,1737417061941,-500.0,0.00021095,2]
[349766157,1737417061950,-500.0,0.00021095,2]
[349766158,1737417061959,-500.0,0.00021095,2]
[349766159,1737417061968,-500.0,0.00021095,2]
[349766160,1737417062104,-500.0,0.00021095,2]
[349766161,1737417062114,-500.0,0.00021095,2]
[349766162,1737417062124,-500.0,0.00021095,2]
[349766163,1737417062133,-500.0,0.00021095,2]
[349766164,1737417062142,-500.0,0.00021095,2]
[349766165,1737417062152,-500.0,0.00021095,2]
[349766166,1737417062161,-500.0,0.00021095,2]
[349766167,1737417062172,-500.0,0.00021095,2]
[349766168,1737417062184,-500.0,0.00021095,2]
[349766169,1737417062195,-1080.67,0.00021095,2]
[349766170,1737417062204,-500.0,0.00021095,2]
[349766171,1737417062213,-500.0,0.00021095,2]
[349766172,1737417062223,-500.0,0.00021095,2]
[349766173,1737417062232,-500.0,0.00021095,2]
[349766174,1737417062241,-480.83506749,0.00021095,2]
[349766175,1737417062251,-500.0,0.00021095,2]
[349766176,1737417062262,-500.0,0.00021095,2]
[349766177,1737417062272,-500.0,0.00021095,2]
[349766178,1737417062282,-500.0,0.00021095,2]
[349766179,1737417062295,-500.0,0.00021095,2]
[349766180,1737417062304,-261.50433266,0.00021095,2]
[349766181,1737417062313,-500.0,0.00021095,2]
[349766182,1737417062323,-500.0,0.00021095,2]
[349766183,1737417062331,-500.0,0.00021095,2]
[349766184,1737417062340,-500.0,0.00021095,2]
[349766185,1737417062349,-500.0,0.00021095,2]
[349766186,1737417062358,-500.0,0.00021095,2]
[349766187,1737417062367,-500.0,0.00021095,2]
[349766188,1737417062376,-500.0,0.00021095,2]
[349766189,1737417062385,-500.0,0.00021095,2]
[349766190,1737417062394,-500.0,0.00021095,2]
[349766191,1737417062403,-500.0,0.00021095,2]
[349766192,1737417062412,-500.0,0.00021095,2]
[349766193,1737417062421,-500.0,0.00021095,2]
[349766194,1737417062430,-500.0,0.00021095,2]
[349766195,1737417062439,-500.0,0.00021095,2]
[349766196,1737417062447,-500.0,0.00021095,2]
[349766197,1737417062457,-500.0,0.00021095,2]
[349766198,1737417062466,-500.0,0.00021095,2]
[349766199,1737417062475,-500.0,0.00021095,2]
[349766200,1737417062484,-500.0,0.00021095,2]
[349766201,1737417062493,-500.0,0.00021095,2]
[349766202,1737417062502,-500.0,0.00021095,2]
[349766203,1737417062510,-500.0,0.00021095,2]
[349766204,1737417062519,-500.0,0.00021095,2]
[349766205,1737417062528,-500.0,0.00021095,2]
[349766206,1737417062540,-500.0,0.00021095,2]
[349766207,1737417062549,-500.0,0.00021095,2]
[349766208,1737417062559,-500.0,0.00021095,2]
[349766209,1737417062567,-500.0,0.00021095,2]
[349766210,1737417062576,-500.0,0.00021095,2]
[349766211,1737417062585,-500.0,0.00021095,2]
[349766212,1737417062594,-500.0,0.00021095,2]
[349766213,1737417062603,-500.0,0.00021095,2]
[349766214,1737417062612,-500.0,0.00021095,2]
[349766215,1737417062622,-500.0,0.00021095,2]
[349766216,1737417062631,-611.04,0.00021095,2]
[349766217,1737417062640,-500.0,0.00021095,2]
[349766218,1737417062649,-500.0,0.00021095,2]
[349766219,1737417062659,-500.0,0.00021095,2]
[349766220,1737417062668,-500.0,0.00021095,2]
[349766221,1737417062677,-500.0,0.00021095,2]
[349766222,1737417062687,-500.0,0.00021095,2]
[349766223,1737417062696,-500.0,0.00021095,2]
[349766224,1737417062705,-500.0,0.00021095,2]
[349766225,1737417062714,-542.98,0.00021095,2]
[349766226,1737417062723,-641.20432204,0.00021095,2]
[349766227,1737417062732,-500.0,0.00021095,2]
[349766228,1737417062741,-500.0,0.00021095,2]
[349766229,1737417062750,-500.0,0.00021095,2]
[349766230,1737417062759,-500.0,0.00021095,2]
[349766231,1737417062768,-500.0,0.00021095,2]
[349766232,1737417062777,-500.0,0.00021095,2]
[349766233,1737417062786,-500.0,0.00021095,2]
[349766234,1737417062798,-500.0,0.00021095,2]
[349766235,1737417062808,-500.0,0.00021095,2]
[349766236,1737417062817,-500.0,0.00021095,2]
[349766237,1737417062826,-540.2,0.00021095,2]
[349766238,1737417062835,-500.0,0.00021095,2]
[349766239,1737417062845,-500.0,0.00021095,2]
[349766240,1737417062855,-548.85,0.00021095,2]
[349766241,1737417062864,-500.0,0.00021095,2]
[349766242,1737417062873,-500.0,0.00021095,2]
[349766243,1737417062883,-500.0,0.00021095,2]
[349766244,1737417062892,-500.0,0.00021095,2]
[349766245,1737417062901,-500.0,0.00021095,2]
[349766246,1737417062911,-500.0,0.00021095,2]
[349766247,1737417062921,-500.0,0.00021095,2]
[349766248,1737417062930,-500.0,0.00021095,2]
[349766249,1737417062940,-500.0,0.00021095,2]
[349766250,1737417062949,-500.0,0.00021095,2]
[349766251,1737417062959,-500.0,0.00021095,2]
[349766252,1737417062969,-500.0,0.00021095,2]
[349766253,1737417062979,-500.0,0.00021095,2]
[349766254,1737417062989,-500.0,0.00021095,2]
[349766255,1737417062999,-500.0,0.00021095,2]
[349766256,1737417063009,-500.0,0.00021095,2]
[349766257,1737417063020,-500.0,0.00021095,2]
[349766258,1737417063031,-500.0,0.00021095,2]
[349766259,1737417063045,-500.0,0.00021095,2]
[349766260,1737417063055,-669.36,0.00021095,2]
[349766261,1737417063066,-500.0,0.00021095,2]
[349766262,1737417063077,-500.0,0.00021095,2]
[349766263,1737417063087,-985.22,0.00021095,2]
[349766264,1737417063096,-500.0,0.00021095,2]
[349766265,1737417063107,-500.0,0.00021095,2]
[349766266,1737417063117,-500.0,0.00021095,2]
[349766267,1737417063127,-777.3,0.00021095,2]
[349766268,1737417063137,-544.49,0.00021095,2]
[349766269,1737417063147,-500.0,0.00021095,2]
[349766270,1737417063157,-1099.02,0.00021095,2]
[349766271,1737417063170,-1845.56,0.00021095,2]
[349766272,1737417063181,-500.0,0.00021095,2]
[349766273,1737417063192,-160.24,0.00021095,2]
[349766274,1737417063205,-622.77151322,0.00021095,2]
[349766275,1737417063215,-878.23,0.00021095,2]
[349766276,1737417063226,-500.0,0.00021095,2]
[349766277,1737417063237,-500.0,0.00021095,2]
[349766278,1737417063247,-500.0,0.00021095,2]
[349766279,1737417063258,-500.0,0.00021095,2]
[349766280,1737417063268,-2476.57,0.00021095,2]
[349766281,1737417063278,-821.42,0.00021095,2]
[349766282,1737417063291,-1198.86,0.00021095,2]
[349766283,1737417063300,-500.0,0.00021095,2]
[349766284,1737417063310,-500.0,0.00021095,2]
[349766285,1737417063320,-500.0,0.00021095,2]
[349766286,1737417063330,-2121.34,0.00021095,2]
[349766287,1737417063340,-500.0,0.00021095,2]
[349766288,1737417063351,-500.0,0.00021095,2]
[349766289,1737417063361,-974.3,0.00021095,2]
[349766290,1737417063372,-792.0,0.00021095,2]
[349766291,1737417063382,-500.0,0.00021095,2]
[349766292,1737417063393,-500.0,0.00021095,2]
[349766293,1737417063404,-500.0,0.00021095,2]
[349766294,1737417063415,-1319.21,0.00021095,2]
[349766295,1737417063426,-500.0,0.00021095,2]
[349766296,1737417063435,-2587.78,0.00021095,2]
[349766297,1737417063446,-500.0,0.00021095,2]
[349766298,1737417063455,-500.0,0.00021095,2]
[349766299,1737417063466,-995.37,0.00021095,2]
[349766300,1737417063475,-285.64,0.00021095,2]
[349766301,1737417063485,-500.0,0.00021095,2]
[349766302,1737417063495,-500.0,0.00021095,2]
[349766303,1737417063506,-500.0,0.00021095,2]
[349766304,1737417063515,-577.54,0.00021095,2]
[349766305,1737417063524,-500.0,0.00021095,2]
[349766306,1737417063534,-500.0,0.00021095,2]
[349766307,1737417063550,-500.0,0.00021095,2]
[349766308,1737417063560,-1101.58,0.00021095,2]
[349766309,1737417063570,-500.0,0.00021095,2]
[349766310,1737417063579,-500.0,0.00021095,2]
[349766311,1737417063589,-500.0,0.00021095,2]
[349766312,1737417063598,-500.0,0.00021095,2]
[349766313,1737417063608,-500.0,0.00021095,2]
[349766314,1737417063617,-1460.32,0.00021095,2]
[349766315,1737417063627,-537.94,0.00021095,2]
[349766316,1737417063637,-1069.22,0.00021095,2]
[349766317,1737417063646,-500.0,0.00021095,2]
[349766318,1737417063656,-500.0,0.00021095,2]
[349766319,1737417063666,-500.0,0.00021095,2]
[349766320,1737417063675,-1016.0,0.00021096,4]
[349766321,1737417063685,-205.46453777,0.00021131,2]
[349766322,1737417063695,-163.85111953,0.00021155,2]
[349766323,1737417063705,-500.0,0.00021168,2]
[349766324,1737417063715,-1537.98,0.00021168,2]
[349766325,1737417063724,-837.36,0.00021168,2]